[Event "Titled Tuesday Blitz February 15 Late 2022"]
[White "Curtis, John"]
[Black "Al-Tarboush, Ward"]
[WhiteFideId "3200256"]
[BlackFideId "7601450"]
[WhiteElo "2203"]
[BlackElo "2276"]
[Result "0-1"]
[Round "09"]
[TimeControl "180+1"]
[Date "2022.02.16"]
[WhiteClock "0:01:05"]
[BlackClock "0:01:43"]

1. e4 {[%clk 0:03:00]}  e6 {[%clk 0:02:54]} 2. d4 {[%clk 0:02:59]}  d5 {[%clk 0:02:54]} 3. Nc3 {[%clk 0:03:00]}  Nf6 {[%clk 0:02:55]} 4. Bg5 {[%clk 0:02:59]}  dxe4 {[%clk 0:02:55]} 5. Nxe4 {[%clk 0:02:59]}  Be7 {[%clk 0:02:55]} 6. Bxf6 {[%clk 0:03:00]}  gxf6 {[%clk 0:02:56]} 7. c3 {[%clk 0:02:58]}  f5 {[%clk 0:02:56]} 8. Nd2 {[%clk 0:02:57]}  c5 {[%clk 0:02:56]} 9. Bb5+ {[%clk 0:02:47]}  Bd7 {[%clk 0:02:55]} 10. Bxd7+ {[%clk 0:02:47]}  Qxd7 {[%clk 0:02:56]} 11. Ngf3 {[%clk 0:02:46]}  Nc6 {[%clk 0:02:56]} 12. dxc5 {[%clk 0:02:42]}  Bxc5 {[%clk 0:02:57]} 13. Nb3 {[%clk 0:02:42]}  Qxd1+ {[%clk 0:02:57]} 14. Rxd1 {[%clk 0:02:41]}  Be7 {[%clk 0:02:58]} 15. Nbd4 {[%clk 0:02:40]}  Nxd4 {[%clk 0:02:57]} 16. Nxd4 {[%clk 0:02:40]}  a6 {[%clk 0:02:58]} 17. Ke2 {[%clk 0:02:39]}  Bf6 {[%clk 0:02:58]} 18. Rd3 {[%clk 0:02:37]}  Rd8 {[%clk 0:02:58]} 19. Rhd1 {[%clk 0:02:37]}  Bxd4 {[%clk 0:02:58]} 20. Rxd4 {[%clk 0:02:37]}  Rxd4 {[%clk 0:02:58]} 21. Rxd4 {[%clk 0:02:37]}  Ke7 {[%clk 0:02:59]} 22. g3 {[%clk 0:02:36]}  Rg8 {[%clk 0:02:51]} 23. a4 {[%clk 0:02:33]}  h5 {[%clk 0:02:44]} 24. Rh4 {[%clk 0:02:27]}  Rg4 {[%clk 0:02:43]} 25. Rxg4 {[%clk 0:02:17]}  hxg4 {[%clk 0:02:44]} 26. f3 {[%clk 0:02:17]}  Kd6 {[%clk 0:02:44]} 27. fxg4 {[%clk 0:02:16]}  fxg4 {[%clk 0:02:44]} 28. Ke3 {[%clk 0:02:13]}  e5 {[%clk 0:02:24]} 29. b3 {[%clk 0:01:58]}  f5 {[%clk 0:02:22]} 30. Kf2 {[%clk 0:01:44]}  f4 {[%clk 0:01:59]} 31. Kg2 {[%clk 0:01:22]}  f3+ {[%clk 0:01:57]} 32. Kf2 {[%clk 0:01:19]}  e4 {[%clk 0:01:58]} 33. Ke3 {[%clk 0:01:19]}  Kc5 {[%clk 0:01:54]} 34. Kf2 {[%clk 0:01:17]}  b5 {[%clk 0:01:47]} 35. axb5 {[%clk 0:01:17]}  Kxb5 {[%clk 0:01:48]} 36. Ke3 {[%clk 0:01:18]}  a5 {[%clk 0:01:48]} 37. Kf2 {[%clk 0:01:12]}  a4 {[%clk 0:01:48]} 38. c4+ {[%clk 0:01:07]}  Kb4 {[%clk 0:01:48]} 39. bxa4 {[%clk 0:01:07]}  Kxc4 {[%clk 0:01:45]} 40. h4 {[%clk 0:01:07]}  gxh3 {[%clk 0:01:44]} 41. g4 {[%clk 0:01:06]}  h2 {[%clk 0:01:43]} 42. g5 {[%clk 0:01:05]}  h1=Q {[%clk 0:01:43]} 0-1


[Site "https://www.chess.com"]

[Event "Titled Tuesday Blitz February 15 Late 2022"]
[White "Daianu, Cristian-Clement"]
[Black "Levine, Joseph"]
[WhiteFideId "1208926"]
[BlackFideId "30940346"]
[WhiteElo "2159"]
[BlackElo "1802"]
[Result "0-1"]
[Round "09"]
[TimeControl "180+1"]
[Date "2022.02.16"]
[WhiteClock "0:00:40"]
[BlackClock "0:00:56"]

1. d4 {[%clk 0:03:00]}  d5 {[%clk 0:03:00]} 2. Bf4 {[%clk 0:03:01]}  Nf6 {[%clk 0:03:00]} 3. e3 {[%clk 0:03:01]}  Bf5 {[%clk 0:03:00]} 4. Nf3 {[%clk 0:03:02]}  e6 {[%clk 0:03:00]} 5. h3 {[%clk 0:02:57]}  Nbd7 {[%clk 0:02:59]} 6. Nc3 {[%clk 0:02:57]}  Bd6 {[%clk 0:02:56]} 7. g4 {[%clk 0:02:56]}  Bg6 {[%clk 0:02:55]} 8. Bd3 {[%clk 0:02:56]}  Ne4 {[%clk 0:02:52]} 9. Bxe4 {[%clk 0:02:46]}  Bxe4 {[%clk 0:02:51]} 10. Nxe4 {[%clk 0:02:44]}  dxe4 {[%clk 0:02:52]} 11. Nd2 {[%clk 0:02:45]}  Bxf4 {[%clk 0:02:50]} 12. exf4 {[%clk 0:02:46]}  Nf6 {[%clk 0:02:48]} 13. Nb3 {[%clk 0:02:39]}  Nd5 {[%clk 0:02:40]} 14. Qe2 {[%clk 0:02:37]}  f5 {[%clk 0:02:30]} 15. O-O-O {[%clk 0:02:20]}  Qd6 {[%clk 0:02:27]} 16. Kb1 {[%clk 0:02:12]}  O-O {[%clk 0:02:20]} 17. gxf5 {[%clk 0:02:06]}  exf5 {[%clk 0:02:20]} 18. Rhg1 {[%clk 0:02:02]}  Kh8 {[%clk 0:02:09]} 19. c4 {[%clk 0:01:34]}  Nxf4 {[%clk 0:02:07]} 20. Qe3 {[%clk 0:01:35]}  Nd3 {[%clk 0:01:53]} 21. f3 {[%clk 0:01:19]}  Rae8 {[%clk 0:01:50]} 22. fxe4 {[%clk 0:01:18]}  fxe4 {[%clk 0:01:50]} 23. Rdf1 {[%clk 0:01:13]}  Rxf1+ {[%clk 0:01:36]} 24. Rxf1 {[%clk 0:01:14]}  Qh2 {[%clk 0:01:36]} 25. Nd2 {[%clk 0:01:14]}  h6 {[%clk 0:01:29]} 26. c5 {[%clk 0:01:04]}  c6 {[%clk 0:01:26]} 27. Nc4 {[%clk 0:00:59]}  b5 {[%clk 0:01:21]} 28. cxb6 {[%clk 0:00:52]}  axb6 {[%clk 0:01:22]} 29. Rd1 {[%clk 0:00:50]}  b5 {[%clk 0:01:18]} 30. Nd2 {[%clk 0:00:46]}  Qf2 {[%clk 0:00:58]} 31. Qxf2 {[%clk 0:00:39]}  Nxf2 {[%clk 0:00:59]} 32. Kc2 {[%clk 0:00:39]}  Nxd1 {[%clk 0:00:59]} 33. Kxd1 {[%clk 0:00:40]}  Rd8 {[%clk 0:00:58]} 34. Nb3 {[%clk 0:00:39]}  c5 {[%clk 0:00:58]} 35. Nxc5 {[%clk 0:00:39]}  Rxd4+ {[%clk 0:00:58]} 36. Ke2 {[%clk 0:00:40]}  Rc4 {[%clk 0:00:56]} 0-1


[Site "https://www.chess.com"]

[Event "Titled Tuesday Blitz February 15 Late 2022"]
[White "Demchenko, Anton"]
[Black "Wieczorek, Oskar"]
[WhiteFideId "4160258"]
[BlackFideId "1133950"]
[WhiteElo "2539"]
[BlackElo "2319"]
[Result "0-1"]
[Round "09"]
[TimeControl "180+1"]
[Date "2022.02.15"]
[WhiteClock "0:00:05"]
[BlackClock "0:00:07"]

1. e4 {[%clk 0:03:00]}  e5 {[%clk 0:03:00]} 2. Nf3 {[%clk 0:03:01]}  Nc6 {[%clk 0:03:00]} 3. Bc4 {[%clk 0:03:01]}  Bc5 {[%clk 0:02:59]} 4. d3 {[%clk 0:03:02]}  Nf6 {[%clk 0:02:58]} 5. Bg5 {[%clk 0:03:02]}  h6 {[%clk 0:02:56]} 6. Bh4 {[%clk 0:03:02]}  Be7 {[%clk 0:02:55]} 7. Bg3 {[%clk 0:03:02]}  d6 {[%clk 0:02:55]} 8. a4 {[%clk 0:03:03]}  a5 {[%clk 0:02:47]} 9. c3 {[%clk 0:03:02]}  O-O {[%clk 0:02:46]} 10. h3 {[%clk 0:03:01]}  Be6 {[%clk 0:02:38]} 11. Bxe6 {[%clk 0:03:01]}  fxe6 {[%clk 0:02:39]} 12. O-O {[%clk 0:03:01]}  Kh8 {[%clk 0:02:33]} 13. Nbd2 {[%clk 0:03:01]}  Qd7 {[%clk 0:02:32]} 14. Re1 {[%clk 0:02:59]}  Qe8 {[%clk 0:02:29]} 15. Qb3 {[%clk 0:02:59]}  Qd7 {[%clk 0:01:54]} 16. Rac1 {[%clk 0:02:52]}  Nh5 {[%clk 0:01:48]} 17. Bh2 {[%clk 0:02:52]}  Nf4 {[%clk 0:01:49]} 18. Bxf4 {[%clk 0:02:53]}  Rxf4 {[%clk 0:01:49]} 19. d4 {[%clk 0:02:53]}  exd4 {[%clk 0:01:48]} 20. Nxd4 {[%clk 0:02:52]}  Nxd4 {[%clk 0:01:37]} 21. cxd4 {[%clk 0:02:53]}  Raf8 {[%clk 0:01:37]} 22. Re2 {[%clk 0:02:49]}  b6 {[%clk 0:01:18]} 23. Nb1 {[%clk 0:02:28]}  Bd8 {[%clk 0:00:59]} 24. Nc3 {[%clk 0:02:22]}  Qf7 {[%clk 0:00:59]} 25. Nd1 {[%clk 0:02:22]}  Qg6 {[%clk 0:00:56]} 26. Qc2 {[%clk 0:01:51]}  Rh4 {[%clk 0:00:33]} 27. Kh1 {[%clk 0:01:34]}  Rf3 {[%clk 0:00:27]} 28. Re3 {[%clk 0:01:08]}  Rxe3 {[%clk 0:00:27]} 29. fxe3 {[%clk 0:01:06]}  Qxe4 {[%clk 0:00:27]} 30. Qxe4 {[%clk 0:01:02]}  Rxe4 {[%clk 0:00:28]} 31. Kg1 {[%clk 0:00:53]}  e5 {[%clk 0:00:28]} 32. dxe5 {[%clk 0:00:43]}  Rxe5 {[%clk 0:00:27]} 33. Kf2 {[%clk 0:00:42]}  Re4 {[%clk 0:00:27]} 34. Nc3 {[%clk 0:00:41]}  Rb4 {[%clk 0:00:26]} 35. Rc2 {[%clk 0:00:41]}  Kg8 {[%clk 0:00:23]} 36. Kf3 {[%clk 0:00:40]}  Kf8 {[%clk 0:00:17]} 37. Nd5 {[%clk 0:00:38]}  Rxa4 {[%clk 0:00:14]} 38. Nxc7 {[%clk 0:00:38]}  Bxc7 {[%clk 0:00:14]} 39. Rxc7 {[%clk 0:00:39]}  Rb4 {[%clk 0:00:15]} 40. Rc2 {[%clk 0:00:39]}  Kf7 {[%clk 0:00:15]} 41. e4 {[%clk 0:00:08]}  Ke6 {[%clk 0:00:14]} 42. h4 {[%clk 0:00:06]}  Ke5 {[%clk 0:00:10]} 43. Rc7 {[%clk 0:00:05]}  Rb3+ {[%clk 0:00:09]} 44. Kg4 {[%clk 0:00:04]}  Rxb2 {[%clk 0:00:10]} 45. g3 {[%clk 0:00:04]}  Kf6 {[%clk 0:00:08]} 46. Rd7 {[%clk 0:00:04]}  a4 {[%clk 0:00:07]} 47. Rxd6+ {[%clk 0:00:04]}  Ke5 {[%clk 0:00:08]} 48. Rd7 {[%clk 0:00:02]}  a3 {[%clk 0:00:07]} 49. Re7+ {[%clk 0:00:02]}  Kd4 {[%clk 0:00:07]} 50. Ra7 {[%clk 0:00:02]}  b5 {[%clk 0:00:07]} 51. Kf5 {[%clk 0:00:02]}  b4 {[%clk 0:00:06]} 52. e5 {[%clk 0:00:02]}  Rf2+ {[%clk 0:00:06]} 53. Ke6 {[%clk 0:00:02]}  Re2 {[%clk 0:00:06]} 54. Rb7 {[%clk 0:00:02]}  Kc3 {[%clk 0:00:06]} 55. Kd6 {[%clk 0:00:02]}  b3 {[%clk 0:00:06]} 56. e6 {[%clk 0:00:02]}  a2 {[%clk 0:00:06]} 57. Rc7+ {[%clk 0:00:03]}  Kb2 {[%clk 0:00:06]} 58. Ra7 {[%clk 0:00:04]}  a1=Q {[%clk 0:00:06]} 59. Rxa1 {[%clk 0:00:04]}  Kxa1 {[%clk 0:00:07]} 60. e7 {[%clk 0:00:05]}  Rxe7 {[%clk 0:00:07]} 0-1


[Site "https://www.chess.com"]

[Event "Titled Tuesday Blitz February 15 Late 2022"]
[White "Fiorito, Fabian"]
[Black "Debray, Christopher"]
[WhiteFideId "100200"]
[BlackFideId "630810"]
[WhiteElo "2395"]
[BlackElo "2369"]
[Result "0-1"]
[Round "09"]
[TimeControl "180+1"]
[Date "2022.02.16"]
[WhiteClock "0:00:31"]
[BlackClock "0:00:10"]

1. d4 {[%clk 0:03:00]}  d5 {[%clk 0:02:59]} 2. Nc3 {[%clk 0:03:01]}  c6 {[%clk 0:02:55]} 3. Bf4 {[%clk 0:03:01]}  Nf6 {[%clk 0:02:53]} 4. e3 {[%clk 0:03:01]}  Bf5 {[%clk 0:02:53]} 5. f3 {[%clk 0:03:01]}  Bg6 {[%clk 0:02:44]} 6. g4 {[%clk 0:03:01]}  Nbd7 {[%clk 0:02:42]} 7. h4 {[%clk 0:03:01]}  h5 {[%clk 0:02:41]} 8. g5 {[%clk 0:03:01]}  Nh7 {[%clk 0:02:40]} 9. Nh3 {[%clk 0:02:59]}  e6 {[%clk 0:02:31]} 10. Qd2 {[%clk 0:02:59]}  Bb4 {[%clk 0:02:28]} 11. a3 {[%clk 0:02:59]}  Qa5 {[%clk 0:02:26]} 12. O-O-O {[%clk 0:02:52]}  Bxc3 {[%clk 0:02:21]} 13. Qxc3 {[%clk 0:02:53]}  Qxc3 {[%clk 0:02:20]} 14. bxc3 {[%clk 0:02:54]}  Nhf8 {[%clk 0:02:17]} 15. Bd6 {[%clk 0:02:52]}  O-O-O {[%clk 0:02:12]} 16. Nf4 {[%clk 0:02:50]}  Nb6 {[%clk 0:02:08]} 17. Be5 {[%clk 0:02:50]}  Rg8 {[%clk 0:02:01]} 18. Bd3 {[%clk 0:02:50]}  Bxd3 {[%clk 0:01:54]} 19. cxd3 {[%clk 0:02:51]}  g6 {[%clk 0:01:55]} 20. Kd2 {[%clk 0:02:49]}  Nfd7 {[%clk 0:01:54]} 21. Rb1 {[%clk 0:02:37]}  Nxe5 {[%clk 0:01:52]} 22. dxe5 {[%clk 0:02:37]}  Kc7 {[%clk 0:01:48]} 23. Ke2 {[%clk 0:02:27]}  Nd7 {[%clk 0:01:48]} 24. d4 {[%clk 0:02:25]}  Nb6 {[%clk 0:01:48]} 25. Nd3 {[%clk 0:02:15]}  Nc4 {[%clk 0:01:47]} 26. a4 {[%clk 0:02:14]}  b6 {[%clk 0:01:43]} 27. e4 {[%clk 0:02:08]}  a5 {[%clk 0:01:36]} 28. exd5 {[%clk 0:02:06]}  Rxd5 {[%clk 0:01:12]} 29. Rb3 {[%clk 0:01:54]}  Rgd8 {[%clk 0:01:06]} 30. Nf4 {[%clk 0:01:52]}  R5d7 {[%clk 0:01:04]} 31. Rd1 {[%clk 0:01:44]}  Nxe5 {[%clk 0:01:00]} 32. Nd3 {[%clk 0:01:34]}  Nxd3 {[%clk 0:00:58]} 33. Kxd3 {[%clk 0:01:31]}  e5 {[%clk 0:00:56]} 34. Re1 {[%clk 0:01:31]}  exd4 {[%clk 0:00:55]} 35. c4 {[%clk 0:01:32]}  c5 {[%clk 0:00:54]} 36. Rb2 {[%clk 0:01:29]}  Rd6 {[%clk 0:00:49]} 37. Rbe2 {[%clk 0:01:29]}  R8d7 {[%clk 0:00:48]} 38. Re8 {[%clk 0:01:28]}  Rd8 {[%clk 0:00:47]} 39. R8e7+ {[%clk 0:01:28]}  R6d7 {[%clk 0:00:46]} 40. R7e5 {[%clk 0:01:28]}  Kc6 {[%clk 0:00:43]} 41. f4 {[%clk 0:01:27]}  Rd6 {[%clk 0:00:40]} 42. f5 {[%clk 0:01:26]}  gxf5 {[%clk 0:00:31]} 43. Rxf5 {[%clk 0:01:26]}  Re6 {[%clk 0:00:31]} 44. Rxe6+ {[%clk 0:00:49]}  fxe6 {[%clk 0:00:32]} 45. Rf6 {[%clk 0:00:49]}  Kd6 {[%clk 0:00:31]} 46. Rh6 {[%clk 0:00:50]}  Rf8 {[%clk 0:00:23]} 47. Rxh5 {[%clk 0:00:47]}  Rf3+ {[%clk 0:00:23]} 48. Ke2 {[%clk 0:00:46]}  Re3+ {[%clk 0:00:22]} 49. Kd2 {[%clk 0:00:46]}  Rg3 {[%clk 0:00:16]} 50. Rh6 {[%clk 0:00:45]}  Ke5 {[%clk 0:00:14]} 51. g6 {[%clk 0:00:45]}  Ke4 {[%clk 0:00:14]} 52. g7 {[%clk 0:00:44]}  Rg2+ {[%clk 0:00:14]} 53. Ke1 {[%clk 0:00:43]}  e5 {[%clk 0:00:11]} 54. Rxb6 {[%clk 0:00:41]}  Rxg7 {[%clk 0:00:11]} 55. Rb5 {[%clk 0:00:39]}  Ke3 {[%clk 0:00:10]} 56. Kf1 {[%clk 0:00:39]}  Kd3 {[%clk 0:00:10]} 57. Rxc5 {[%clk 0:00:39]}  e4 {[%clk 0:00:10]} 58. Rxa5 {[%clk 0:00:37]}  e3 {[%clk 0:00:10]} 59. Re5 {[%clk 0:00:36]}  Kd2 {[%clk 0:00:08]} 60. c5 {[%clk 0:00:32]}  d3 {[%clk 0:00:09]} 61. Rf5 {[%clk 0:00:25]}  e2+ {[%clk 0:00:08]} 62. Kf2 {[%clk 0:00:26]}  e1=Q+ {[%clk 0:00:08]} 63. Kf3 {[%clk 0:00:26]}  Qf1+ {[%clk 0:00:06]} 64. Ke4 {[%clk 0:00:27]}  Re7+ {[%clk 0:00:06]} 65. Kd5 {[%clk 0:00:27]}  Qxf5+ {[%clk 0:00:07]} 66. Kc4 {[%clk 0:00:28]}  Re4+ {[%clk 0:00:07]} 67. Kb5 {[%clk 0:00:28]}  Qf4 {[%clk 0:00:07]} 68. c6 {[%clk 0:00:29]}  Rxa4 {[%clk 0:00:07]} 69. Kc5 {[%clk 0:00:29]}  Rc4+ {[%clk 0:00:08]} 70. Kb6 {[%clk 0:00:30]}  Rxc6+ {[%clk 0:00:08]} 71. Kxc6 {[%clk 0:00:31]}  Qxh4 {[%clk 0:00:09]} 72. Kd5 {[%clk 0:00:31]}  Kc3 {[%clk 0:00:10]} 0-1


[Site "https://www.chess.com"]

[Event "Titled Tuesday Blitz February 15 Late 2022"]
[White "Foisor, Sabina-Francesca"]
[Black "Weetik, Vjacheslav"]
[WhiteFideId "1212915"]
[BlackFideId "4153472"]
[WhiteElo "2488"]
[BlackElo "2668"]
[Result "0-1"]
[Round "09"]
[TimeControl "180+1"]
[Date "2022.02.16"]
[WhiteClock "0:00:12"]
[BlackClock "0:00:15"]

1. d4 {[%clk 0:03:00]}  Nf6 {[%clk 0:02:58]} 2. c4 {[%clk 0:02:59]}  e6 {[%clk 0:02:58]} 3. Nf3 {[%clk 0:02:57]}  b6 {[%clk 0:02:56]} 4. g3 {[%clk 0:02:52]}  Ba6 {[%clk 0:02:56]} 5. Qc2 {[%clk 0:02:43]}  c5 {[%clk 0:02:55]} 6. dxc5 {[%clk 0:02:42]}  bxc5 {[%clk 0:02:45]} 7. Bg2 {[%clk 0:02:42]}  Bb7 {[%clk 0:02:39]} 8. O-O {[%clk 0:02:41]}  Be7 {[%clk 0:02:33]} 9. Nc3 {[%clk 0:02:30]}  O-O {[%clk 0:02:26]} 10. Rd1 {[%clk 0:02:30]}  Qb6 {[%clk 0:02:25]} 11. b3 {[%clk 0:02:28]}  d6 {[%clk 0:02:15]} 12. Bb2 {[%clk 0:02:28]}  Nc6 {[%clk 0:02:11]} 13. Rd2 {[%clk 0:02:15]}  Rfd8 {[%clk 0:02:11]} 14. Rad1 {[%clk 0:02:14]}  h6 {[%clk 0:01:58]} 15. h4 {[%clk 0:02:11]}  Rd7 {[%clk 0:01:49]} 16. Na4 {[%clk 0:01:56]}  Qc7 {[%clk 0:01:47]} 17. Bxf6 {[%clk 0:01:50]}  Nb4 {[%clk 0:01:46]} 18. Qb1 {[%clk 0:01:34]}  Bxf6 {[%clk 0:01:40]} 19. a3 {[%clk 0:01:34]}  Na6 {[%clk 0:01:39]} 20. Qc2 {[%clk 0:01:17]}  Rad8 {[%clk 0:01:36]} 21. Nc3 {[%clk 0:01:17]}  Nb8 {[%clk 0:01:24]} 22. Ne1 {[%clk 0:01:07]}  a6 {[%clk 0:01:12]} 23. Bxb7 {[%clk 0:01:03]}  Qxb7 {[%clk 0:01:13]} 24. Ne4 {[%clk 0:01:02]}  Be7 {[%clk 0:01:12]} 25. Ng2 {[%clk 0:00:59]}  Nc6 {[%clk 0:01:12]} 26. e3 {[%clk 0:01:00]}  Ne5 {[%clk 0:01:09]} 27. Ne1 {[%clk 0:00:51]}  f5 {[%clk 0:01:05]} 28. Nc3 {[%clk 0:00:51]}  g5 {[%clk 0:01:01]} 29. hxg5 {[%clk 0:00:47]}  hxg5 {[%clk 0:01:01]} 30. e4 {[%clk 0:00:48]}  f4 {[%clk 0:00:54]} 31. Kg2 {[%clk 0:00:32]}  Bf6 {[%clk 0:00:50]} 32. Nf3 {[%clk 0:00:29]}  Nxf3 {[%clk 0:00:41]} 33. Kxf3 {[%clk 0:00:30]}  g4+ {[%clk 0:00:31]} 34. Ke2 {[%clk 0:00:20]}  f3+ {[%clk 0:00:29]} 35. Kd3 {[%clk 0:00:20]}  d5 {[%clk 0:00:22]} 36. cxd5 {[%clk 0:00:16]}  exd5 {[%clk 0:00:21]} 37. e5 {[%clk 0:00:16]}  c4+ {[%clk 0:00:17]} 38. Ke3 {[%clk 0:00:12]}  Bg5+ {[%clk 0:00:15]} 0-1


[Site "https://www.chess.com"]

[Event "Titled Tuesday Blitz February 15 Late 2022"]
[White "Gatterer, Florian"]
[Black "Yurovskykh, Oleksandr"]
[WhiteFideId "811688"]
[BlackFideId "14134020"]
[WhiteElo "2218"]
[BlackElo "2292"]
[Result "1/2-1/2"]
[Round "09"]
[TimeControl "180+1"]
[Date "2022.02.16"]
[WhiteClock "0:01:32"]
[BlackClock "0:02:23"]

1. Nf3 {[%clk 0:03:00]}  d5 {[%clk 0:02:57]} 2. e3 {[%clk 0:03:01]}  Nf6 {[%clk 0:02:56]} 3. c4 {[%clk 0:03:01]}  dxc4 {[%clk 0:02:56]} 4. Bxc4 {[%clk 0:03:00]}  c5 {[%clk 0:02:54]} 5. O-O {[%clk 0:02:53]}  Nc6 {[%clk 0:02:54]} 6. d4 {[%clk 0:02:53]}  e6 {[%clk 0:02:49]} 7. Nc3 {[%clk 0:02:51]}  cxd4 {[%clk 0:02:49]} 8. exd4 {[%clk 0:02:50]}  Be7 {[%clk 0:02:49]} 9. Re1 {[%clk 0:02:50]}  O-O {[%clk 0:02:45]} 10. Bf4 {[%clk 0:02:47]}  Nb4 {[%clk 0:02:42]} 11. Bg5 {[%clk 0:02:30]}  b6 {[%clk 0:02:32]} 12. a3 {[%clk 0:02:29]}  Nbd5 {[%clk 0:02:30]} 13. Nxd5 {[%clk 0:02:19]}  exd5 {[%clk 0:02:30]} 14. Bd3 {[%clk 0:02:08]}  Bg4 {[%clk 0:02:27]} 15. h3 {[%clk 0:02:06]}  Bh5 {[%clk 0:02:25]} 16. g4 {[%clk 0:01:41]}  Bg6 {[%clk 0:02:23]} 17. Ne5 {[%clk 0:01:32]} 1/2-1/2


[Site "https://www.chess.com"]

[Event "Titled Tuesday Blitz February 15 Late 2022"]
[White "Gubajdullin, Alexei"]
[Black "Haszon, David"]
[WhiteFideId "4141202"]
[BlackFideId "733610"]
[WhiteElo "2268"]
[BlackElo "2201"]
[Result "1-0"]
[Round "09"]
[TimeControl "180+1"]
[Date "2022.02.16"]
[WhiteClock "0:02:08"]
[BlackClock "0:01:19"]

1. d4 {[%clk 0:03:00]}  Nf6 {[%clk 0:02:59]} 2. Nf3 {[%clk 0:03:00]}  d5 {[%clk 0:02:59]} 3. Bf4 {[%clk 0:02:59]}  c5 {[%clk 0:02:59]} 4. e3 {[%clk 0:02:59]}  Qb6 {[%clk 0:02:58]} 5. Nc3 {[%clk 0:02:58]}  e6 {[%clk 0:02:53]} 6. Nb5 {[%clk 0:02:56]}  Na6 {[%clk 0:02:51]} 7. a4 {[%clk 0:02:53]}  Nh5 {[%clk 0:02:47]} 8. Be5 {[%clk 0:02:47]}  f6 {[%clk 0:02:46]} 9. Nd2 {[%clk 0:02:43]}  g6 {[%clk 0:02:43]} 10. g4 {[%clk 0:02:36]}  fxe5 {[%clk 0:02:43]} 11. gxh5 {[%clk 0:02:36]}  exd4 {[%clk 0:02:42]} 12. hxg6 {[%clk 0:02:35]}  dxe3 {[%clk 0:02:36]} 13. Qh5 {[%clk 0:02:22]}  exd2+ {[%clk 0:02:36]} 14. Kxd2 {[%clk 0:02:16]}  Kd8 {[%clk 0:02:22]} 15. g7 {[%clk 0:02:15]}  Bxg7 {[%clk 0:02:13]} 16. Qg5+ {[%clk 0:02:15]}  Ke8 {[%clk 0:02:13]} 17. Qxg7 {[%clk 0:02:14]}  Rf8 {[%clk 0:02:12]} 18. Be2 {[%clk 0:02:14]}  Rxf2 {[%clk 0:01:30]} 19. Raf1 {[%clk 0:02:13]}  c4 {[%clk 0:01:25]} 20. Rxf2 {[%clk 0:02:12]}  Qxf2 {[%clk 0:01:23]} 21. Rf1 {[%clk 0:02:12]}  c3+ {[%clk 0:01:21]} 22. bxc3 {[%clk 0:02:11]}  Qc5 {[%clk 0:01:19]} 23. Bh5+ {[%clk 0:02:09]}  Kd8 {[%clk 0:01:19]} 24. Rf8+ {[%clk 0:02:08]} 1-0


[Site "https://www.chess.com"]

[Event "Titled Tuesday Blitz February 15 Late 2022"]
[White "Gurevich, Dmitry"]
[Black "Hess, Robert"]
[WhiteFideId "2000407"]
[BlackFideId "2022036"]
[WhiteElo "2506"]
[BlackElo "2557"]
[Result "1-0"]
[Round "09"]
[TimeControl "180+1"]
[Date "2022.02.15"]
[WhiteClock "0:00:51"]
[BlackClock "0:00:01"]

1. d4 {[%clk 0:03:00]}  g6 {[%clk 0:03:00]} 2. c4 {[%clk 0:02:59]}  Bg7 {[%clk 0:02:57]} 3. e4 {[%clk 0:02:59]}  d6 {[%clk 0:02:56]} 4. Nc3 {[%clk 0:02:58]}  e6 {[%clk 0:02:57]} 5. Nf3 {[%clk 0:02:57]}  Ne7 {[%clk 0:02:57]} 6. h4 {[%clk 0:02:56]}  h6 {[%clk 0:02:58]} 7. Be3 {[%clk 0:02:52]}  b6 {[%clk 0:02:57]} 8. Bd3 {[%clk 0:02:47]}  Bb7 {[%clk 0:02:58]} 9. d5 {[%clk 0:02:43]}  Bxc3+ {[%clk 0:02:53]} 10. bxc3 {[%clk 0:02:42]}  e5 {[%clk 0:02:53]} 11. Qd2 {[%clk 0:02:35]}  Ng8 {[%clk 0:02:41]} 12. h5 {[%clk 0:02:20]}  g5 {[%clk 0:02:41]} 13. Ng1 {[%clk 0:02:13]}  Nf6 {[%clk 0:02:30]} 14. f3 {[%clk 0:02:10]}  a5 {[%clk 0:02:27]} 15. c5 {[%clk 0:02:06]}  dxc5 {[%clk 0:02:09]} 16. Ne2 {[%clk 0:02:03]}  Kf8 {[%clk 0:02:07]} 17. Ng3 {[%clk 0:02:02]}  Bc8 {[%clk 0:01:45]} 18. O-O {[%clk 0:01:57]}  Ne8 {[%clk 0:01:36]} 19. c4 {[%clk 0:01:34]}  Nd6 {[%clk 0:01:30]} 20. Qc3 {[%clk 0:01:32]}  f6 {[%clk 0:00:35]} 21. f4 {[%clk 0:01:31]}  gxf4 {[%clk 0:00:33]} 22. Bxf4 {[%clk 0:01:31]}  exf4 {[%clk 0:00:24]} 23. Rxf4 {[%clk 0:01:30]}  Ne8 {[%clk 0:00:12]} 24. e5 {[%clk 0:01:30]}  Rg8 {[%clk 0:00:09]} 25. Bg6 {[%clk 0:01:23]}  Nd7 {[%clk 0:00:06]} 26. e6 {[%clk 0:01:19]}  Qe7 {[%clk 0:00:06]} 27. Nf5 {[%clk 0:01:15]}  Ne5 {[%clk 0:00:04]} 28. Nxe7 {[%clk 0:01:11]}  Kxe7 {[%clk 0:00:05]} 29. Raf1 {[%clk 0:01:06]}  Nxg6 {[%clk 0:00:05]} 30. Rxf6 {[%clk 0:01:02]}  Nh8 {[%clk 0:00:04]} 31. Rxh6 {[%clk 0:00:58]}  Bb7 {[%clk 0:00:01]} 32. Rh7+ {[%clk 0:00:52]}  Kd6 {[%clk 0:00:01]} 33. Rd7# {[%clk 0:00:51]} 1-0


[Site "https://www.chess.com"]